[Event "MPL 41st IND-ch Teams 2022"]
[Site "Jalgaon"]
[Date "2022.04.08"]
[Round "1.1"]
[White "Vivaan Vishal Shah"]
[Black "Aravindh, Chithambaram VR."]
[Result "0-1"]
[ECO "B56"]
[WhiteElo "1510"]
[BlackElo "2611"]
[Annotator "TA"]
[PlyCount "70"]
[EventDate "2022.04.08"]
[EventType "team-tourn"]
[EventCountry "IND"]
[SourceTitle "playchess.com"]
[Source "ChessBase"]
[SourceQuality "1"]
[TimeControl "5400+30"]

{[%evp 15,70,0,20,16,15,-11,-27,-11,-17,-48,-45,-53,-61,-57,-45,-64,-51,-46,-36,-43,-62,-68,-30,-37,-29,-55,-6,-24,-19,0,0,0,-16,-37,-24,-105,-100,-117,-110,-151,-148,-150,-159,-177,-101,-94,-107,-265,-250,-1185,-1122,-1624,-1565,-1489,-852,-751,-691]} 1. e4 c5 2. Nf3 d6 3. d4 cxd4 4. Nxd4 Nf6 5. Nc3 Nbd7 6. Be3 a6 7. Be2 e6 8. O-O b5 9. a4 {B84: Sicilian Scheveningen: 6 Be2 a6, lines without early Be3.} b4 {[#]} 10. Nc6 $1 Qc7 11. Nxb4 {[%cal Bc6b4,Bb4d3,Bd3f4][%mdl 32] Black has an edge.} d5 $1 12. Nd3 dxe4 13. Nf4 Bd6 14. Qd2 {[#]} Rb8 $146 ({Predecessor:} 14... O-O 15. a5 Rb8 16. Ra4 Rxb2 17. Rc4 Qb8 18. Nxe4 Nxe4 19. Rxe4 Nf6 20. Rc4 Bb7 {0-1 (55) Braggaar,L (2088)-Ratsma,R (2027) Leiden 2016}) 15. Rab1 h6 16. h3 Be5 17. Nh5 Nxh5 18. Bxh5 Nf6 19. Be2 {[%cal Oa4a5]} O-O 20. Bd4 Bh2+ (20... Bf4 $5 {[%cal Rf4d2]} 21. Qe1 Bb7 $15) 21. Kh1 {[#]} e5 $1 $36 {[%mdl 2048] Black has the initiative.} 22. Be3 Rd8 23. Qc1 Bf4 24. Re1 Bb7 25. g3 (25. Rd1 $11) 25... Bxe3 $17 26. Qxe3 Rd4 27. Bf1 {[#]} Nh7 $1 28. h4 f5 29. Ne2 Rdd8 ({Worse is} 29... Rxa4 30. Qb3+ Qc4 31. Kg1 $17) ({Black should play} 29... Rd6 $19 {[%cal Of5f4] And now ...f4! would win.} 30. Red1 Rc6) 30. Qc3 Qe7 {White must now prevent ...e3+. &Nero is more active.} 31. Red1 $2 {White does not recover from this.} (31. Kg1 $17) 31... f4 {aiming for ...e3+.} 32. gxf4 $2 (32. Kg1 e3 33. fxe3) 32... Qxh4+ $19 {Black is clearly winning.} 33. Qh3 e3+ 34. f3 Qxh3+ 35. Bxh3 Bxf3+ {Weighted Error Value: White=0.68/Black=0.34} 0-1

[Event "MPL 41st IND-ch Teams 2022"]
[Site "Jalgaon"]
[Date "2022.04.08"]
[Round "1.2"]
[White "Puranik, Abhimanyu"]
[Black "Adalja Vanssh A"]
[Result "1-0"]
[ECO "A05"]
[WhiteElo "2618"]
[BlackElo "1704"]
[Annotator "TA"]
[PlyCount "54"]
[EventDate "2022.04.08"]
[EventType "team-tourn"]
[EventCountry "IND"]
[SourceTitle "playchess.com"]
[Source "ChessBase"]
[SourceQuality "1"]
[TimeControl "5400+30"]

{[%evp 16,54,31,26,41,43,47,39,54,10,24,19,12,0,0,0,54,40,47,46,50,0,39,0,31,6,13,-7,0,0,14,15,100,100,98,28,79,74,69,69,1035]} 1. Nf3 Nf6 2. c4 c6 3. g3 g6 4. b3 Bg7 5. Bb2 O-O 6. Bg2 d5 7. O-O Nbd7 8. d4 Ne4 9. e3 $1 {[%mdl 4] now scores much better than the old 9.Nbd2.} e6 {D78: Fianchetto Grünfeld: 6 0-0 c6.} 10. Qc2 f5 11. Nc3 {[#]} a5 $146 ({Predecessor:} 11... b6 12. Ne2 Re8 13. cxd5 cxd5 14. Nf4 Bb7 15. Rfc1 Rc8 16. Qd1 Qf6 17. Rxc8 Rxc8 {½-½ (47) Kragten,J (2336)-Dedina,M (2369) ICCF email 2018}) 12. Ne1 b6 13. Nd3 Ba6 14. Ne2 Rc8 15. Rfd1 b5 (15... Qe7 $11) 16. c5 Qe7 17. a3 Ra8 18. Rac1 (18. f3 $14) 18... g5 (18... b4 $5) 19. Ne5 Bb7 (19... Bxe5 $5 20. dxe5 b4 $11) 20. Nxd7 Qxd7 21. Ra1 h5 22. Nc1 Qe7 23. Nd3 h4 (23... Qe8 $11 {keeps the balance.}) 24. f3 $16 {gxh4 is the strong threat.} Nf6 25. Ne5 ({White should play} 25. gxh4 $16 gxh4 26. Bh3) 25... Kh7 (25... hxg3 $1 $11 26. hxg3 Qe8) 26. e4 {&Bianco is more active.} Nd7 27. exf5 Nxe5 $4 {[%mdl 8192] Weighted Error Value: White=0.17 (very precise) /Black=0.23 (precise)} (27... exf5 $14 28. gxh4 Nxe5 29. dxe5 gxh4) 1-0

[Event "MPL 41st IND-ch Teams 2022"]
[Site "Jalgaon"]
[Date "2022.04.08"]
[Round "1.4"]
[White "Raja Rithvik R"]
[Black "Kanani Parth R"]
[Result "1-0"]
[ECO "D11"]
[WhiteElo "2490"]
[BlackElo "1511"]
[Annotator "TA"]
[PlyCount "49"]
[EventDate "2022.04.08"]
[EventType "team-tourn"]
[EventCountry "IND"]
[SourceTitle "playchess.com"]
[Source "ChessBase"]
[SourceQuality "1"]
[TimeControl "5400+30"]

{[%evp 13,49,24,28,26,27,16,30,24,11,14,14,17,58,53,100,91,98,98,99,97,95,95,251,250,255,251,618,597,585,600,29989,29990,29990,29991,29994,29995,29995,29996]} 1. d4 d5 2. c4 c6 3. Nf3 Nf6 4. e3 e6 5. b3 Nbd7 6. Bb2 Bd6 7. Nbd2 O-O 8. Bd3 {D30: Queen's Gambit Declined: Systems without Nc3.} b6 9. O-O Bb7 10. Ne5 {White has an edge. 10.Qe2 gains popularity.} Rc8 11. f4 c5 12. Qe2 Ne4 13. cxd5 exd5 (13... Nxd2 $14 14. Qxd2 Bxd5) 14. Nxe4 $16 dxe4 {[#]} 15. Bb5 $146 ({Predecessor:} 15. Bc4 Nf6 16. Rad1 Bd5 17. dxc5 Bxc5 18. Ng4 Bxc4 19. bxc4 Qe7 20. Bxf6 gxf6 21. Nh6+ {1-0 (41) Nechaeva,M (2373)-Afonasieva,A (2302) Khanty-Mansiysk 2019}) 15... Nf6 16. Rad1 {Threatens to win with dxc5. 0x0.00264cf1c310dp-1022s more active pieces.} Qe7 17. dxc5 bxc5 {This move loses the game for Black.} (17... Rxc5 $16 18. Bc4 Nd5) 18. Ng4 $18 Nxg4 19. Qxg4 {[%csl Gb2][%cal Rg4g7]} f6 $2 {[#]} (19... f5 20. Bc4+ Kh8 21. Bxg7+ Qxg7 22. Qxg7+ Kxg7) 20. Rxd6 $1 {[%mdl 512]} Qxd6 21. Rd1 {Against Qd2} Qb6 {[#]} 22. Rd7 $1 {[%csl Gd7][%cal Rg4g7] White mates.} Rf7 23. Bc4 {[%mdl 64] Pin} Rcf8 24. Rxf7 {[%mdl 64] Remove Defender} Rxf7 25. Qd7 $1 {[%mdl 64] Pin, Double Attack.  Weighted Error Value: White=0.01 (flawless) /Black=0.74} 1-0

[Event "MPL 41st IND-ch Teams 2022"]
[Site "Jalgaon"]
[Date "2022.04.08"]
[Round "1.5"]
[White "Deepan Chakkravarthy J."]
[Black "Aditya Tiwari"]
[Result "1-0"]
[ECO "B11"]
[WhiteElo "2520"]
[BlackElo "1306"]
[Annotator "TA"]
[PlyCount "65"]
[EventDate "2022.04.08"]
[EventType "team-tourn"]
[EventCountry "IND"]
[SourceTitle "playchess.com"]
[Source "ChessBase"]
[SourceQuality "1"]
[TimeControl "5400+30"]

{[%evp 17,65,106,101,100,140,151,329,289,329,328,347,310,381,222,255,247,255,245,241,239,236,211,238,184,254,164,172,155,252,251,376,374,362,354,428,414,694,603,813,813,794,794,788,666,679,660,652,639,628,584]} 1. e4 c6 2. Nf3 d5 3. Nc3 dxe4 4. Nxe4 Bf5 5. Ng3 Bg6 6. h4 h6 7. Ne5 Bh7 8. Qh5 g6 9. Bc4 e6 10. Qe2 {[%cal Oe5f7] B11: Caro-Kann: Two Knights Variation.} Qc7 11. d4 {[%cal Bd2d4,Bd4e5][%mdl 32] &Bianco is much more active.} Bd6 $2 (11... Nf6 $16 {is a better defense.} 12. Bf4 Qe7) 12. Bd2 {Ne4 is the strong threat. White has a decisive advantage.} Bxe5 13. dxe5 (13. Qxe5 Qxe5+ 14. dxe5 g5 $18) 13... Nd7 14. O-O-O O-O-O {[#]} 15. Bb4 $146 {Prevents Ne7.} (15. Ne4 $142) ({Predecessor:} 15. f4 Ne7 16. Ne4 Kb8 17. g4 Nc8 18. f5 Ndb6 19. Ba5 h5 20. Bb3 Rxd1+ 21. Rxd1 {1-0 (43) Bocharov,L (2147)-Somova,N (1931) Peterhof 2007}) 15... c5 $18 16. Bc3 {Hoping for Ne4.} Ne7 {[#]} 17. Ne4 $1 {aiming for Nd6+.} Kb8 18. Nd6 Rhf8 19. g4 {[%cal Bg2g4,Bg4g5][%mdl 32]} Nc8 20. g5 h5 (20... hxg5 {was called for.} 21. hxg5 Bg8) 21. f4 {And now Nxc8 would win.} Ndb6 22. Rh3 {[%cal Bh1h3,Bh3c3,Bc3c5,Bc5c7][%mdl 32]} Na4 (22... Nxd6 $2 23. exd6 Qc8 24. Bf6 $18) (22... Rg8 $16 {was worth a try.} 23. b3 Nxc4) 23. Qd2 Nxc3 (23... Qb6 $142 24. Rd3 Nxc3 25. Rxc3 (25. Qxc3 Qb4 $16) 25... Qb4) 24. Rxc3 ({Not} 24. bxc3 a6 $16) 24... Nb6 25. Qg2 Rd7 26. Bb5 Rdd8 {[#]} (26... Re7 $142 27. Qg1 Nd5 28. Rxc5 Qb6) 27. Rxc5 $1 {[%mdl 512] White is clearly winning.} Rxd6 (27... Qe7 28. Qf2) 28. Rxc7 {[%csl Gc7][%cal Rg2b7]} Rxd1+ 29. Kxd1 {[%csl Gc7][%cal Rg2b7]} Kxc7 30. c3 Nd5 {Threatens to win with ...Ne3+.} 31. Qf3 {Against Ne3+} Rd8 32. Kc2 Bg8 33. Bd3 {Black got outplayed after the opening.  Weighted Error Value: White=0.26 (precise) /Black=0.47} 1-0

[Event "MPL 41st IND-ch Teams 2022"]
[Site "Jalgaon"]
[Date "2022.04.08"]
[Round "1.6"]
[White "Ayushmaan Saini"]
[Black "Swapnil, S. Dhopade"]
[Result "0-1"]
[ECO "A58"]
[WhiteElo "1403"]
[BlackElo "2495"]
[Annotator "TA"]
[PlyCount "40"]
[EventDate "2022.04.08"]
[EventType "team-tourn"]
[EventCountry "IND"]
[SourceTitle "playchess.com"]
[Source "ChessBase"]
[SourceQuality "1"]
[TimeControl "5400+30"]

{[%evp 9,40,28,44,41,69,56,74,0,17,-27,0,-39,-4,0,-20,-79,-71,-72,-75,-82,-70,-118,-118,-343,-358,-462,-447,-714,-656,-674,-659,-1539,-1437]} 1. d4 Nf6 2. c4 c5 3. d5 b5 4. cxb5 a6 5. bxa6 g6 6. Nc3 {[%cal Oa6a7] A58: Benko/Volga Gambit: Lines with 5 bxa6.} Bg7 7. e4 O-O 8. g3 (8. Be2 $16) 8... d6 {[#]} 9. f4 $146 ({Predecessor:} 9. Nge2 Bxa6 10. Nf4 Qb6 11. Bxa6 Qxa6 12. Qe2 Nbd7 13. Qxa6 Rxa6 14. Ke2 Rb8 15. Rb1 {½-½ (43) Lintchevski,D (2532)-Romanov,E (2654) St Petersburg 2013}) 9... Qa5 10. Bg2 ({Reject} 10. e5 dxe5 11. Bg2 (11. fxe5 Ne4 $17) 11... e4 $17) 10... Bxa6 11. Nge2 Nbd7 {[%cal Bb8d7,Bd7c5,Bc5d3][%mdl 32]} 12. Bd2 (12. O-O $11 {keeps the balance.}) 12... Rfb8 $17 {[%mdl 1024] Black has strong compensation. &Nero is more active.} 13. Qc2 Qb6 14. Rb1 {[#]} c4 $1 {[%cal Bc5c4,Bc4d3][%mdl 32]} 15. h3 (15. Na4 $15 Qa7 16. Bf3) 15... Nc5 {Threatens to win with ...Nd3+.} 16. Nc1 {White does not recover from this.} (16. Be3 $17) 16... Nh5 $19 {...Nd3+ is the strong threat.} 17. g4 Ng3 {Hoping for ...Nd3+. Black is clearly winning.} 18. Rf1 (18. Be3 $142 Nd3+ 19. Qxd3 cxd3 20. Bxb6 Rxb6 21. Nb3) 18... Nd3+ 19. Nxd3 cxd3 20. Qd1 Bxc3 {Weighted Error Value: White=0.87/Black=0.08 (flawless)} 0-1

[Event "MPL 41st IND-ch Teams 2022"]
[Site "Jalgaon"]
[Date "2022.04.08"]
[Round "1.7"]
[White "Visakh N R"]
[Black "Goswami  Arvind"]
[Result "1-0"]
[ECO "E69"]
[WhiteElo "2522"]
[BlackElo "1426"]
[Annotator "TA"]
[PlyCount "49"]
[EventDate "2022.04.08"]
[EventType "team-tourn"]
[EventCountry "IND"]
[SourceTitle "playchess.com"]
[Source "ChessBase"]
[SourceQuality "1"]
[TimeControl "5400+30"]

{[%evp 16,49,21,24,64,49,58,23,60,39,116,112,119,111,112,114,98,93,93,104,114,115,118,120,256,232,288,296,385,397,917,887,904,886,1283,1070]} 1. d4 Nf6 2. c4 g6 3. Nc3 Bg7 4. g3 O-O 5. Bg2 c6 6. e4 d6 7. Nf3 e5 8. O-O Nbd7 9. h3 Nb6 {E69: King's Indian: Fianchetto: 6...Nbd7 7 0-0 e5 8 e4 c6 9 h3.} 10. b3 Re8 {[#]} 11. Bb2 $146 ({Predecessor:} 11. Be3 Qc7 12. Rc1 Nbd7 13. Qc2 exd4 14. Nxd4 Nc5 15. Rfe1 a6 16. Rcd1 b5 17. cxb5 axb5 18. b4 {1-0 (28) Spassov,L (2405)-Ellinas,G Peristeri 1992}) 11... Qc7 {White has an edge.} 12. Rc1 Bd7 (12... exd4 $14 13. Qxd4 (13. Nxd4 a5 $11) 13... Bd7) 13. c5 $16 dxc5 14. dxe5 Nh5 15. Ne2 $36 {[%mdl 2048] And now g4 would win. White is really pushing.} Rad8 {[%cal Od7h3]} 16. Qe1 {g4 is the strong threat.} ({Reject} 16. Rxc5 Bxh3 $1 17. Bxh3 Rxd1 18. Rxd1 f5 19. exf5 Nd7 $15) 16... Bf8 17. Nd2 (17. Nh2 {seems wilder.} Rxe5 18. Nf4 Rde8 19. Nxh5 Rxh5 20. Qc3) 17... Be6 18. g4 Ng7 19. f4 {[%cal Bf2f4,Bf4f5][%mdl 32] Hoping for f5.} Bc8 {[#] Black cannot hold the game after this.} (19... c4 $16 {keeps fighting.}) 20. Nf3 $1 $18 {[%cal Bd2f3,Bf3g5,Bg5f7][%mdl 32]} c4 {[#]} 21. f5 $1 ({Not} 21. bxc4 Na4 22. Bd4 Ne6 $11) 21... Nd7 22. e6 Nc5 $2 (22... fxe6 23. f6 (23. Rxc4 exf5 24. exf5 gxf5 $11) 23... e5 24. fxg7 Bxg7 25. Rxc4 b6) 23. exf7+ {White is clearly winning.} Qxf7 24. Ng5 gxf5 25. Nxf7 {Weighted Error Value: White=0.04 (flawless) /Black=0.35} 1-0

[Event "MPL 41st IND-ch Teams 2022"]
[Site "Jalgaon"]
[Date "2022.04.09"]
[Round "2.1"]
[White "Aravindh, Chithambaram VR."]
[Black "Potawad Anirudhha"]
[Result "1-0"]
[ECO "D04"]
[WhiteElo "2611"]
[BlackElo "1875"]
[Annotator "TA"]
[PlyCount "67"]
[EventDate "2022.04.08"]
[EventType "team-tourn"]
[EventCountry "IND"]
[SourceTitle "playchess.com"]
[Source "ChessBase"]
[SourceQuality "1"]
[TimeControl "5400+30"]

{[%evp 16,67,19,13,16,5,13,0,0,0,0,-13,0,-10,-10,-5,0,0,0,0,0,0,0,6,9,0,35,43,77,40,218,222,192,226,211,218,338,332,322,336,420,430,598,476,560,566,667,477,692,703,643,524,964,955]} 1. d4 {[%emt 0:00:05]} Nf6 {[%emt 0:00:28]} 2. Nf3 {[%emt 0:00:10]} d5 {[%emt 0:00:22]} 3. e3 {[%emt 0:00:13]} Bf5 {[%emt 0:01:40]} 4. Bd3 {[%emt 0:00:59]} Bxd3 {[%emt 0:01:14]} 5. Qxd3 {[%emt 0:00:10]} c6 {[%emt 0:00:13]} 6. Nbd2 {[%emt 0:04:48]} e6 {[%emt 0:00:39]} 7. O-O {[%emt 0:00:19][%cal Bh1f1,Bf1f3,Bf3h3][%mdl 32]} Bd6 {[%emt 0:00:46]} 8. b3 {[%emt 0:09:40]} Nbd7 {[%emt 0:04:25]} 9. Bb2 {[%emt 0:00:15]} O-O {[%emt 0:08:36] D04: Colle System.} 10. Ne5 {[%emt 0:03:27]} c5 {[%emt 0:01:49]} 11. f4 {[%emt 0:00:15]} Rc8 {[%emt 0:02:08] The position is equal.} 12. Rf3 {[%emt 0:00:31] [#]} Qc7 $146 {[%emt 0:02:24]} ({Predecessor:} 12... h6 13. h3 Qc7 14. c4 cxd4 15. exd4 Bb4 16. Bc3 Bxc3 17. Qxc3 b6 18. Qe3 Qb7 {1-0 (33) Gazik,J (1802)-Zahorcek,J (1553) Liptovsky Mikulas 2017}) 13. c3 {[%emt 0:04:52]} Rfd8 {[%emt 0:05:54]} (13... Bxe5 14. fxe5 Ng4 15. c4 $14) 14. Raf1 {[%emt 0:00:58]} a6 {[%emt 0:07:40]} 15. Rh3 {[%emt 0:06:51]} Nf8 {[%emt 0:09:11]} 16. Qe2 {[%emt 0:02:28]} Ne4 {[%emt 0:06:40]} 17. Nxe4 {[%emt 0:06:07]} dxe4 {[%emt 0:00:08]} 18. c4 {[%emt 0:00:25] Against b5} f6 {[%emt 0:19:01]} 19. Ng4 {[%emt 0:00:13]} f5 {[%emt 0:01:44]} (19... cxd4 {seems wilder.} 20. exd4 Bxf4 21. Qxe4 Bg5) 20. Ne5 {[%emt 0:00:11]} Be7 {[%emt 0:03:23]} 21. g4 {[%emt 0:07:04]} Bf6 {[%emt 0:01:14]} 22. Rg3 {[%emt 0:01:51] Black must now prevent gxf5. &Bianco is more active.} Qe7 $2 {[%emt 0:03:23] Black cannot hold the game after this.} ({Better is} 22... Ng6 $14) 23. gxf5 $18 {[%emt 0:03:52]} exf5 {[%emt 0:00:03] [#]} 24. Qh5 $1 {[%emt 0:00:08]} cxd4 {[%emt 0:03:39]} 25. exd4 {[%emt 0:00:20]} (25. Qxf5 $6 dxe3 26. Qxe4 (26. Rxe3 b5 $14) 26... e2 27. Qxe2 b5 $16) 25... Ne6 {[%emt 0:01:52]} (25... b5 $142 26. Qxf5 bxc4 27. bxc4 Ng6 28. Qxe4 (28. Ba3 Qe8 $18) 28... Bxe5 29. fxe5 Qb4) 26. Qxf5 {[%emt 0:00:40]} Rf8 {[%emt 0:05:11]} 27. Qxe4 {[%emt 0:01:40]} ({Don't do} 27. Rh3 $6 g6 28. Qxe4 Bxe5 $18) 27... Rcd8 {[%emt 0:00:46]} 28. Kh1 {[%emt 0:07:18]} ({Weaker is} 28. Rh3 g6 29. d5 Ng7 $18) 28... a5 {[%emt 0:02:14] White is clearly winning.} 29. Rfg1 {[%emt 0:00:59]} Bh4 {[%emt 0:01:34]} 30. Rf3 {[%emt 0:01:24]} ({And not} 30. Rh3 Rxf4 31. Qg2 Rf2 $11) 30... Bf6 {[%emt 0:00:16]} 31. Bc3 {[%emt 0:01:53]} Qe8 {[%emt 0:02:08]} (31... Rfe8 $142 32. Re3 Nf8) 32. d5 {[%emt 0:04:57] [#] Threatens to win with Rh3.} Nc5 {[%emt 0:00:12]} 33. Qe3 {[%emt 0:00:05]} Qh5 {[%emt 0:02:12]} 34. Rfg3 {[%emt 0:01:08] Weighted Error Value: White=0.19 (very precise) /Black=0.53} 1-0

[Event "MPL 41st IND-ch Teams 2022"]
[Site "Jalgaon"]
[Date "2022.04.09"]
[Round "2.2"]
[White "Rachit H Gurnani"]
[Black "Puranik, Abhimanyu"]
[Result "0-1"]
[ECO "B59"]
[WhiteElo "1854"]
[BlackElo "2618"]
[Annotator "TA"]
[PlyCount "57"]
[EventDate "2022.04.08"]
[EventType "team-tourn"]
[EventCountry "IND"]
[SourceTitle "playchess.com"]
[Source "ChessBase"]
[SourceQuality "1"]
[TimeControl "5400+30"]

{[%evp 15,57,27,26,17,13,0,0,0,1,0,0,14,7,-91,0,0,21,0,0,16,16,0,-2,6,57,10,18,-108,-104,-158,-167,-157,-148,-158,-151,-147,-156,-137,-127,-170,-158,-1052,-1001,-29998]} 1. e4 {[%emt 0:00:08]} c5 {[%emt 0:00:12]} 2. Nf3 {[%emt 0:00:07][%cal Bg1f3,Bf3d4,Bd4b3][%mdl 32]} Nc6 {[%emt 0:00:09]} 3. d4 {[%emt 0:00:41]} cxd4 {[%emt 0:00:05]} 4. Nxd4 {[%emt 0:00:30]} Nf6 {[%emt 0:00:08]} 5. Nc3 {[%emt 0:00:01]} d6 {[%emt 0:00:09]} 6. Be2 {[%emt 0:02:27]} e5 {[%emt 0:01:43]} 7. Nb3 {[%emt 0:03:57]} h6 {[%emt 0:00:51]} 8. O-O {[%emt 0:02:19]} Be7 {[%emt 0:00:04]} 9. Kh1 {[%emt 0:01:16] B59: Classical Sicilian: 6 Be2 e5 7 Nb3.} O-O {[%emt 0:00:53]} 10. f4 {[%emt 0:00:49]} a5 {[%emt 0:01:57]} 11. a4 {The position is equal.} Nb4 {[%emt 0:01:41]} 12. Bf3 {[%emt 0:07:04]} Qc7 {[%emt 0:04:26]} (12... Qb6 $5 {[%cal Rc8e6]}) 13. Be3 {[%emt 0:08:00]} Be6 {[%emt 0:00:00] [#]} 14. Bc1 $146 {[%emt 0:00:00]} (14. Qd2 $11 {keeps the balance.}) ({Predecessor:} 14. Qd2 Rfd8 15. Qf2 Ra6 16. Rad1 Rc6 17. Nb5 Qb8 18. Nxa5 Rxc2 19. Qg3 Kf8 20. b3 b6 21. f5 Bd5 22. exd5 bxa5 {1-0 (41) Gommers,R (2342)-Van der Weide,K (2400) Belgium 2002}) 14... Bc8 {[%emt 0:01:00] &Nero is more active.} (14... Rfd8 $17 {And now ...d5 would win.} 15. Bd2 Qb6) 15. Be3 {[%emt 0:01:00]} Be6 {[%emt 0:11:17]} 16. Rf2 {[%emt 0:00:30]} Rfd8 {[%emt 0:00:30]} 17. Rd2 {[%emt 0:00:30] Prevents d5.} Bc4 {[%emt 0:00:30]} 18. Rc1 {[%emt 0:00:30]} d5 {[%emt 0:00:30]} 19. exd5 {[%emt 0:00:30]} e4 {[%emt 0:00:30] [#]} (19... exf4 $11 20. Bg1 Bf8) 20. d6 $1 {[%emt 0:00:30]} Bxd6 $11 {[%emt 0:00:30]} 21. Bxe4 {[%emt 0:00:30]} (21. Nxe4 $11 Be7 22. Nc3) 21... Na2 $1 $17 {[%emt 0:00:30]} 22. Bxb7 {[%emt 0:00:30]} Nxc3 $1 {[%emt 0:00:30]} 23. bxc3 {[%emt 0:00:30]} Qxb7 {[%emt 0:00:30]} 24. Rxd6 {[%emt 0:00:30]} Rxd6 {[%emt 0:00:30]} 25. Qxd6 {[%emt 0:00:30][%cal Ob3a5] [#]} Bd5 $1 {[%emt 0:00:30]} 26. Rg1 {[%emt 0:00:30][%cal Oc3c4] [#]} Re8 $1 {[%emt 0:00:30][%mdl 1024] Black has strong compensation.} 27. Qb6 {[%emt 0:00:30][%cal Oc3c4]} Qc8 {[%emt 0:00:30] White must now prevent ...Qh3.} 28. Bd4 $2 {[%emt 0:00:30]} ({Don't blunder} 28. Nxa5 $2 Qh3 29. Qxf6 gxf6 $19) (28. Qd4 $17) 28... Nh5 $19 {[%emt 0:00:30][%cal Oh5g3] ( -> ...Ng3+!)} 29. Be5 {[%emt 0:00:30] Weighted Error Value: White=0.65/Black=0.07 (flawless)} 0-1

[Event "MPL 41st IND-ch Teams 2022"]
[Site "Jalgaon"]
[Date "2022.04.09"]
[Round "2.3"]
[White "Sankalp Gupta"]
[Black "Gengaje Pratik"]
[Result "1-0"]
[ECO "A34"]
[WhiteElo "2536"]
[BlackElo "1744"]
[Annotator "TA"]
[PlyCount "45"]
[EventDate "2022.04.08"]
[EventType "team-tourn"]
[EventCountry "IND"]
[SourceTitle "playchess.com"]
[Source "ChessBase"]
[SourceQuality "1"]
[TimeControl "5400+30"]

{[%evp 14,45,25,-21,36,29,36,35,26,35,73,61,63,60,67,27,38,35,35,31,48,59,68,55,57,14,20,16,244,239,241,249,192,208]} 1. Nf3 {[%emt 0:00:33]} Nf6 {[%emt 0:00:32]} 2. c4 {[%emt 0:00:04]} c5 {[%emt 0:02:31]} 3. Nc3 {[%emt 0:00:30]} d5 {[%emt 0:02:06]} 4. cxd5 {[%emt 0:04:58]} Nxd5 {[%emt 0:00:36]} 5. e4 {[%emt 0:00:35]} Nxc3 {[%emt 0:01:02]} 6. bxc3 {[%emt 0:00:45][%cal Bb2c3,Bc3d4,Bd4d5,Bd5d6][%mdl 32]} g6 {[%emt 0:19:15]} 7. d4 {[%emt 0:08:04]} Bg7 {[%emt 0:08:24]} 8. Be2 {[%emt 0:00:29]} (8. Be3 {should be considered.}) 8... cxd4 {[%emt 0:03:21] D85: Exchange Grünfeld: Unusual White 7th moves and lines with 7 Nf3.} (8... Nc6 $11) 9. cxd4 $14 {[%emt 0:00:52]} Nc6 {[%emt 0:04:37][%cal Rc6d4]} 10. Be3 {[%emt 0:01:49][%cal Bc1e3,Be3d2,Bd2b4][%mdl 32]} Qa5+ {[%emt 0:05:37] White is slightly better.} 11. Bd2 {[%emt 0:04:30]} Qd8 {[%emt 0:00:27]} 12. d5 {[%emt 0:01:34]} Ne5 {[%emt 0:01:38]} 13. Rc1 {[%emt 0:04:05]} O-O {[%emt 0:03:54]} 14. Nxe5 {[%emt 0:01:38]} Bxe5 {[%emt 0:00:21]} 15. O-O {[%emt 0:00:45] [#]} e6 $146 {[%emt 0:08:15]} ({Predecessor:} 15... Bd7 16. Bh6 Bg7 17. Bxg7 Kxg7 18. Qd4+ Kg8 19. Rfd1 Qa5 20. Qe5 Qxa2 21. Bf3 Qa3 {½-½ (61) Amir,K (2234)-Huguet Mainar,S (2142) Khanty-Mansiysk 2010}) 16. Bb4 {[%emt 0:09:52]} Re8 {[%emt 0:16:37]} 17. d6 {[%emt 0:06:58][%cal Oc1c8] aiming for Rxc8!} Qh4 {[%emt 0:08:15][%csl Ge5,LRe4,LRh2][%cal Rh4h2] [#]} 18. g3 {[%emt 0:03:30] Active counter play!} Qxe4 {[%emt 0:00:58]} 19. Rc4 {[%emt 0:03:55]} (19. Ba5 $5 {[%cal Re2b5]} Bd7 20. Bf3 $16) 19... Qd5 {[%emt 0:01:15]} 20. Qc2 $36 {[%emt 0:10:20][%mdl 3072] Rd1 is the strong threat. White has compensation. White is more active.} Bd7 $2 {[%emt 0:07:13]} (20... Bxd6 $2 21. Rd1 $18) (20... Bd4 $11 {and Black stays safe.}) 21. Rd1 $18 {[%emt 0:01:25] White is clearly better.} Qb5 {[%emt 0:00:39]} 22. Re4 {[%emt 0:00:16]} Qb6 {[%emt 0:01:51]} 23. Qc7 $1 {[%emt 0:00:25] Weighted Error Value: White=0.09 (flawless) /Black=0.46} ({And not} 23. Rxe5 Qxb4 24. Rc5 Qb6 $15) 1-0